[Event "*** Titled Tuesday Blitz"]
[Site "Chess.com"]
[Date "2020.04.14"]
[Round "2"]
[White "Stormeman100100"]
[Black "CarlosAlbornoz"]
[Result "0-1"]
[WhiteElo "2455"]
[BlackElo "2703"]
[TimeControl "180+1"]
[EndTime "10:17:07 PDT"]
[Termination "CarlosAlbornoz won by resignation"]

1. e4 {[%clk 0:02:59.6]} 1... c5 {[%clk 0:02:59.9]} 2. Nf3 {[%clk 0:02:52.8]}
2... d6 {[%clk 0:02:59.7]} 3. d4 {[%clk 0:02:48.8]} 3... cxd4 {[%clk 0:03:00.6]}
4. Nxd4 {[%clk 0:02:49.3]} 4... Nf6 {[%clk 0:03:00.7]} 5. Nc3 {[%clk 0:02:48.5]}
5... a6 {[%clk 0:03:00.8]} 6. f3 {[%clk 0:02:44.1]} 6... e5 {[%clk 0:03:00.4]}
7. Nb3 {[%clk 0:02:43.2]} 7... Be6 {[%clk 0:03:00.3]} 8. Be3 {[%clk 0:02:42.9]}
8... h5 {[%clk 0:02:59.9]} 9. Nd5 {[%clk 0:02:38.4]} 9... Bxd5 {[%clk 0:02:58]}
10. exd5 {[%clk 0:02:39.3]} 10... g6 {[%clk 0:02:58.9]} 11. Qd2 {[%clk
0:02:24.8]} 11... Nbd7 {[%clk 0:02:57.6]} 12. O-O-O {[%clk 0:02:24.6]} 12... Bg7
{[%clk 0:02:54.3]} 13. Kb1 {[%clk 0:02:17.9]} 13... O-O {[%clk 0:02:53.3]} 14.
Be2 {[%clk 0:01:59.9]} 14... Qc7 {[%clk 0:02:50.1]} 15. g4 {[%clk 0:01:54.1]}
15... hxg4 {[%clk 0:02:44.8]} 16. fxg4 {[%clk 0:01:55]} 16... Ne4 {[%clk
0:02:44.9]} 17. Qe1 {[%clk 0:01:53.3]} 17... Rac8 {[%clk 0:02:37.4]} 18. Bd3
{[%clk 0:01:50.9]} 18... Nec5 {[%clk 0:02:36.8]} 19. Nxc5 {[%clk 0:01:48.9]}
19... Nxc5 {[%clk 0:02:37.7]} 20. Bxc5 {[%clk 0:01:45.9]} 20... Qxc5 {[%clk
0:02:37]} 21. Qe4 {[%clk 0:01:36.6]} 21... f5 {[%clk 0:02:32.6]} 22. gxf5 {[%clk
0:01:37.5]} 22... gxf5 {[%clk 0:02:33.4]} 23. Qh4 {[%clk 0:01:34.7]} 23... e4
{[%clk 0:02:32.4]} 24. Rhg1 {[%clk 0:01:22.7]} 24... Rc7 {[%clk 0:01:47.3]} 25.
Qh6 {[%clk 0:00:55]} 25... exd3 {[%clk 0:01:40.9]} 26. Qe6+ {[%clk 0:00:54.7]}
26... Kh8 {[%clk 0:01:34]} 27. c3 {[%clk 0:00:48.3]} 27... Rcf7 {[%clk
0:01:15.6]} 28. Rg3 {[%clk 0:00:45.5]} 28... Qf2 {[%clk 0:01:01]} 29. Rh3+
{[%clk 0:00:41.4]} 29... Kg8 {[%clk 0:01:00.7]} 30. Rdxd3 {[%clk 0:00:30.6]}
30... f4 {[%clk 0:00:50]} 31. Qg6 {[%clk 0:00:28.8]} 31... Re8 {[%clk
0:00:43.2]} 32. Qh7+ {[%clk 0:00:17.5]} 32... Kf8 {[%clk 0:00:43]} 33. Rd1
{[%clk 0:00:10.2]} 33... Re2 {[%clk 0:00:40.3]} 0-1

[Event "*** Titled Tuesday Blitz"]
[Site "Chess.com"]
[Date "2020.04.14"]
[Round "2"]
[White "Angel_Hranitel_37"]
[Black "VincentKeymer"]
[Result "1-0"]
[WhiteElo "2374"]
[BlackElo "2656"]
[TimeControl "180+1"]
[EndTime "10:17:07 PDT"]
[Termination "Angel_Hranitel_37 won by resignation"]

1. d4 {[%clk 0:01:35.1]} 1... Nf6 {[%clk 0:02:57.5]} 2. c4 {[%clk 0:01:35.4]}
2... e6 {[%clk 0:02:56.4]} 3. Nf3 {[%clk 0:01:35.9]} 3... b6 {[%clk 0:02:54.5]}
4. g3 {[%clk 0:01:36.8]} 4... Ba6 {[%clk 0:02:52.1]} 5. Qc2 {[%clk 0:01:35.1]}
5... c5 {[%clk 0:02:50.5]} 6. Bg2 {[%clk 0:01:34.6]} 6... Bb7 {[%clk 0:02:49.7]}
7. O-O {[%clk 0:01:34.1]} 7... cxd4 {[%clk 0:02:47.7]} 8. Nxd4 {[%clk
0:01:28.9]} 8... Bxg2 {[%clk 0:02:47.1]} 9. Kxg2 {[%clk 0:01:29.8]} 9... Bc5
{[%clk 0:02:46.7]} 10. e3 {[%clk 0:01:21.5]} 10... Bxd4 {[%clk 0:02:42.7]} 11.
exd4 {[%clk 0:01:20.7]} 11... O-O {[%clk 0:02:43.4]} 12. b3 {[%clk 0:01:20.6]}
12... Nc6 {[%clk 0:02:42.7]} 13. Bb2 {[%clk 0:01:20]} 13... d5 {[%clk
0:02:41.2]} 14. c5 {[%clk 0:01:18.3]} 14... Rc8 {[%clk 0:02:39.8]} 15. Nd2
{[%clk 0:00:58.6]} 15... a5 {[%clk 0:02:16.3]} 16. Rac1 {[%clk 0:00:53.3]} 16...
bxc5 {[%clk 0:02:11.4]} 17. dxc5 {[%clk 0:00:54.2]} 17... e5 {[%clk 0:02:10.1]}
18. Qf5 {[%clk 0:00:54.6]} 18... d4 {[%clk 0:02:07.7]} 19. Nc4 {[%clk
0:00:52.8]} 19... Qd5+ {[%clk 0:02:06.1]} 20. Kg1 {[%clk 0:00:51.8]} 20... Rce8
{[%clk 0:01:41.8]} 21. Rfd1 {[%clk 0:00:33.7]} 21... Re6 {[%clk 0:01:33.7]} 22.
Ne3 {[%clk 0:00:33.7]} 22... Qd7 {[%clk 0:01:26.9]} 23. Ng4 {[%clk 0:00:33.3]}
23... Nxg4 {[%clk 0:01:25.5]} 24. Qxg4 {[%clk 0:00:34.2]} 24... f5 {[%clk
0:01:25.5]} 25. Qe2 {[%clk 0:00:34.2]} 25... Qd5 {[%clk 0:01:23.8]} 26. Qc4
{[%clk 0:00:33.5]} 26... Rd8 {[%clk 0:01:24.1]} 27. a3 {[%clk 0:00:30.8]} 27...
d3 {[%clk 0:01:21]} 28. Rxd3 {[%clk 0:00:26.7]} 28... Qxc4 {[%clk 0:01:13.7]}
29. Rxd8+ {[%clk 0:00:26]} 29... Nxd8 {[%clk 0:01:14.1]} 30. Rxc4 {[%clk
0:00:26.9]} 30... e4 {[%clk 0:01:01.9]} 31. b4 {[%clk 0:00:26.8]} 31... axb4
{[%clk 0:00:58.8]} 32. axb4 {[%clk 0:00:27.7]} 32... Ra6 {[%clk 0:00:57.9]} 33.
b5 {[%clk 0:00:27.6]} 33... Ra2 {[%clk 0:00:55.4]} 34. c6 {[%clk 0:00:25.6]}
34... Ne6 {[%clk 0:00:53.3]} 35. Be5 {[%clk 0:00:22]} 35... f4 {[%clk
0:00:36.7]} 36. c7 {[%clk 0:00:20.3]} 1-0

[Event "*** Titled Tuesday Blitz"]
[Site "Chess.com"]
[Date "2020.04.14"]
[Round "2"]
[White "jk13"]
[Black "fugadelafuga"]
[Result "0-1"]
[WhiteElo "2792"]
[BlackElo "2363"]
[TimeControl "180+1"]
[EndTime "10:17:07 PDT"]
[Termination "fugadelafuga won by resignation"]

1. e4 {[%clk 0:03:00.9]} 1... c5 {[%clk 0:02:57.9]} 2. c3 {[%clk 0:03:01]} 2...
Nf6 {[%clk 0:02:54.4]} 3. e5 {[%clk 0:03:01.3]} 3... Nd5 {[%clk 0:02:53.3]} 4.
Bc4 {[%clk 0:03:02.2]} 4... Nb6 {[%clk 0:02:48.7]} 5. Bb3 {[%clk 0:03:02.7]}
5... d5 {[%clk 0:02:42.4]} 6. exd6 {[%clk 0:03:02.3]} 6... Qxd6 {[%clk
0:02:40.8]} 7. Nf3 {[%clk 0:03:02.9]} 7... c4 {[%clk 0:02:34.8]} 8. Bc2 {[%clk
0:03:03]} 8... Bg4 {[%clk 0:02:27]} 9. Qe2 {[%clk 0:03:02.3]} 9... Nc6 {[%clk
0:02:22.8]} 10. Na3 {[%clk 0:03:02.7]} 10... Qe6 {[%clk 0:02:19.3]} 11. Qxe6
{[%clk 0:02:58.8]} 11... Bxe6 {[%clk 0:02:19.8]} 12. Ng5 {[%clk 0:02:59.5]}
12... Bd5 {[%clk 0:02:16]} 13. O-O {[%clk 0:02:58.4]} 13... e5 {[%clk
0:02:15.5]} 14. b3 {[%clk 0:02:54.6]} 14... Be7 {[%clk 0:02:09.4]} 15. Re1
{[%clk 0:02:47]} 15... Bxg5 {[%clk 0:02:03.9]} 16. Nb5 {[%clk 0:02:44.2]} 16...
O-O-O {[%clk 0:01:57.6]} 17. bxc4 {[%clk 0:02:36.4]} 17... Bxc4 {[%clk
0:01:54.4]} 18. a4 {[%clk 0:02:34.2]} 18... Bxd2 {[%clk 0:01:48.3]} 19. Rd1
{[%clk 0:02:26.2]} 19... Bxc1 {[%clk 0:01:42]} 20. Rdxc1 {[%clk 0:02:27.1]}
20... Na5 {[%clk 0:01:30.4]} 21. Nxa7+ {[%clk 0:02:24.8]} 21... Kc7 {[%clk
0:01:29.8]} 22. Nb5+ {[%clk 0:02:25.7]} 22... Bxb5 {[%clk 0:01:28.7]} 23. axb5
{[%clk 0:02:26.6]} 23... Nac4 {[%clk 0:01:29.1]} 24. Bb3 {[%clk 0:02:22.4]}
24... Ra8 {[%clk 0:01:25.7]} 25. Rab1 {[%clk 0:02:22]} 25... Nd2 {[%clk
0:01:25.2]} 26. Rb2 {[%clk 0:02:22.1]} 26... Nxb3 {[%clk 0:01:21.5]} 27. Rxb3
{[%clk 0:02:23]} 27... Rhd8 {[%clk 0:01:14.9]} 28. c4 {[%clk 0:02:22.2]} 28...
Rd4 {[%clk 0:01:13]} 29. c5 {[%clk 0:02:22.1]} 29... Nd5 {[%clk 0:01:07.9]} 30.
h3 {[%clk 0:02:21.7]} 30... Raa4 {[%clk 0:01:03.3]} 31. Rc2 {[%clk 0:02:12]}
31... Rab4 {[%clk 0:00:59.4]} 32. Rg3 {[%clk 0:02:10.3]} 32... g6 {[%clk
0:00:58.4]} 33. c6 {[%clk 0:02:07.1]} 33... Rbc4 {[%clk 0:00:52.2]} 34. Ra2
{[%clk 0:02:03.9]} 34... Ra4 {[%clk 0:00:51.7]} 35. Rc2 {[%clk 0:02:03.7]} 35...
b6 {[%clk 0:00:42.5]} 36. Kh2 {[%clk 0:01:56.7]} 36... f5 {[%clk 0:00:40]} 37.
Rb3 {[%clk 0:01:46.7]} 37... Rab4 {[%clk 0:00:37.1]} 38. Ra3 {[%clk 0:01:46.8]}
38... Ra4 {[%clk 0:00:30.7]} 39. Rb3 {[%clk 0:01:40.3]} 39... Rdb4 {[%clk
0:00:29.5]} 40. Rd3 {[%clk 0:01:39.7]} 40... Rxb5 {[%clk 0:00:28.9]} 41. Rd1
{[%clk 0:01:32.3]} 41... Rd4 {[%clk 0:00:28.5]} 42. Ra1 {[%clk 0:01:32.3]} 42...
Rc5 {[%clk 0:00:26.1]} 43. Rb2 {[%clk 0:01:29.2]} 43... Rxc6 {[%clk 0:00:25.8]}
44. Ra7+ {[%clk 0:01:29.3]} 44... Kd6 {[%clk 0:00:26]} 45. Rxh7 {[%clk
0:01:30.2]} 45... Kc5 {[%clk 0:00:25.5]} 46. h4 {[%clk 0:01:25.2]} 46... b5
{[%clk 0:00:25.7]} 47. g3 {[%clk 0:01:24.2]} 47... b4 {[%clk 0:00:25.5]} 48. Rb7
{[%clk 0:01:22.3]} 48... Rb6 {[%clk 0:00:25.2]} 49. Rd7 {[%clk 0:01:20.6]} 49...
Kc4 {[%clk 0:00:24.8]} 50. Rb1 {[%clk 0:01:13.7]} 50... Nc3 {[%clk 0:00:23.9]}
51. Rc7+ {[%clk 0:01:13.7]} 51... Kd3 {[%clk 0:00:22.3]} 52. Rb3 {[%clk
0:01:14.4]} 52... Kc2 {[%clk 0:00:21.8]} 53. Rcxc3+ {[%clk 0:01:14]} 53... bxc3
{[%clk 0:00:20.7]} 54. Rxb6 {[%clk 0:01:14.9]} 54... Kd2 {[%clk 0:00:20.5]} 55.
Rxg6 {[%clk 0:01:14.2]} 55... Rc4 {[%clk 0:00:20.7]} 56. Rd6+ {[%clk 0:01:14.2]}
56... Ke1 {[%clk 0:00:20.4]} 57. Rd5 {[%clk 0:01:12.2]} 57... c2 {[%clk
0:00:20.6]} 58. Rxe5+ {[%clk 0:01:12.8]} 58... Kxf2 {[%clk 0:00:20.7]} 59. Rxf5+
{[%clk 0:01:12.8]} 59... Ke2 {[%clk 0:00:21.3]} 60. Re5+ {[%clk 0:01:12.9]}
60... Kd2 {[%clk 0:00:21.3]} 61. Rd5+ {[%clk 0:01:12.3]} 61... Kc3 {[%clk
0:00:21.6]} 0-1

[Event "*** Titled Tuesday Blitz"]
[Site "Chess.com"]
[Date "2020.04.14"]
[Round "2"]
[White "lrestevez"]
[Black "GusKan67"]
[Result "0-1"]
[WhiteElo "2142"]
[BlackElo "2418"]
[TimeControl "180+1"]
[EndTime "10:17:07 PDT"]
[Termination "GusKan67 won by resignation"]

1. e4 {[%clk 0:03:00.9]} 1... c5 {[%clk 0:02:59.6]} 2. Nf3 {[%clk 0:02:52.6]}
2... d6 {[%clk 0:02:59]} 3. d4 {[%clk 0:02:52.5]} 3... cxd4 {[%clk 0:02:59.9]}
4. c3 {[%clk 0:02:52.7]} 4... Nf6 {[%clk 0:02:58.5]} 5. Bd3 {[%clk 0:02:52.3]}
5... dxc3 {[%clk 0:02:58.4]} 6. Nxc3 {[%clk 0:02:53.2]} 6... Nc6 {[%clk
0:02:58.9]} 7. Qe2 {[%clk 0:02:53.2]} 7... e5 {[%clk 0:02:51.2]} 8. h3 {[%clk
0:02:52.9]} 8... h6 {[%clk 0:02:50.3]} 9. O-O {[%clk 0:02:52.1]} 9... Be7 {[%clk
0:02:50]} 10. a3 {[%clk 0:02:51.4]} 10... O-O {[%clk 0:02:49.5]} 11. Be3 {[%clk
0:02:51.4]} 11... Be6 {[%clk 0:02:45.3]} 12. Rfd1 {[%clk 0:02:49.5]} 12... a6
{[%clk 0:02:42]} 13. Rac1 {[%clk 0:02:49.1]} 13... Rc8 {[%clk 0:02:40.8]} 14.
Nd2 {[%clk 0:02:39.3]} 14... b5 {[%clk 0:02:02.7]} 15. b4 {[%clk 0:02:30.7]}
15... d5 {[%clk 0:01:56]} 16. exd5 {[%clk 0:02:30]} 16... Nxd5 {[%clk
0:01:56.9]} 17. Nxd5 {[%clk 0:02:28.2]} 17... Qxd5 {[%clk 0:01:53.4]} 18. Ne4
{[%clk 0:02:17.6]} 18... Nd4 {[%clk 0:01:47.3]} 19. Bxd4 {[%clk 0:01:42.1]}
19... Rxc1 {[%clk 0:01:44.3]} 20. Rxc1 {[%clk 0:01:39.4]} 20... Qxd4 {[%clk
0:01:42.6]} 21. Nc5 {[%clk 0:01:31.3]} 21... Bxc5 {[%clk 0:01:35.3]} 22. Rxc5
{[%clk 0:01:30.4]} 22... Rd8 {[%clk 0:01:30.7]} 23. Be4 {[%clk 0:01:22.6]} 23...
Bc4 {[%clk 0:01:15.9]} 24. Qf3 {[%clk 0:01:12.3]} 24... g6 {[%clk 0:01:01.5]}
25. Rc7 {[%clk 0:01:06]} 25... Qd1+ {[%clk 0:00:56.4]} 26. Qxd1 {[%clk
0:01:02.2]} 26... Rxd1+ {[%clk 0:00:57.3]} 27. Kh2 {[%clk 0:01:02.5]} 27... Ra1
{[%clk 0:00:55.2]} 28. Re7 {[%clk 0:00:59.4]} 28... Rxa3 {[%clk 0:00:52.7]} 29.
Rxe5 {[%clk 0:00:58.8]} 29... Rb3 {[%clk 0:00:44.8]} 30. Re8+ {[%clk 0:00:58.2]}
30... Kg7 {[%clk 0:00:43.6]} 31. Ra8 {[%clk 0:00:58.3]} 31... Rxb4 {[%clk
0:00:41.4]} 32. Rxa6 {[%clk 0:00:57.9]} 32... Rb2 {[%clk 0:00:38.5]} 33. Rd6
{[%clk 0:00:51.2]} 33... Rxf2 {[%clk 0:00:35.9]} 34. Bd5 {[%clk 0:00:49.1]}
34... Rd2 {[%clk 0:00:28.2]} 35. Bxc4 {[%clk 0:00:44.9]} 35... Rxd6 {[%clk
0:00:27.6]} 36. Bxb5 {[%clk 0:00:45.3]} 36... f5 {[%clk 0:00:26.6]} 37. Be2
{[%clk 0:00:44.8]} 37... g5 {[%clk 0:00:25.3]} 38. Bf3 {[%clk 0:00:43.9]} 38...
Kg6 {[%clk 0:00:24.4]} 39. Ba8 {[%clk 0:00:43.2]} 39... h5 {[%clk 0:00:23.8]}
40. Bb7 {[%clk 0:00:42.4]} 40... Rb6 {[%clk 0:00:23.5]} 41. Bd5 {[%clk
0:00:41.9]} 41... Rb2 {[%clk 0:00:24.4]} 42. Kg1 {[%clk 0:00:39.7]} 42... Rd2
{[%clk 0:00:24.1]} 43. Bb7 {[%clk 0:00:39.4]} 43... g4 {[%clk 0:00:24.4]} 44.
hxg4 {[%clk 0:00:39]} 44... hxg4 {[%clk 0:00:24.1]} 45. Kf1 {[%clk 0:00:37.6]}
45... f4 {[%clk 0:00:24.3]} 46. Ba8 {[%clk 0:00:37.3]} 46... Kg5 {[%clk
0:00:23.7]} 0-1

[Event "*** Titled Tuesday Blitz"]
[Site "Chess.com"]
[Date "2020.04.14"]
[Round "2"]
[White "nihalsarin"]
[Black "Haykoooo0o"]
[Result "1-0"]
[WhiteElo "3062"]
[BlackElo "2618"]
[TimeControl "180+1"]
[EndTime "10:17:08 PDT"]
[Termination "nihalsarin won by resignation"]

1. e4 {[%clk 0:03:00.6]} 1... e5 {[%clk 0:02:58.7]} 2. Nf3 {[%clk 0:03:00.7]}
2... Nc6 {[%clk 0:02:57.1]} 3. Bb5 {[%clk 0:03:01.3]} 3... Nf6 {[%clk
0:02:54.4]} 4. d3 {[%clk 0:02:58.8]} 4... Bc5 {[%clk 0:02:53.9]} 5. O-O {[%clk
0:02:58.8]} 5... Nd4 {[%clk 0:02:53.8]} 6. Be3 {[%clk 0:02:59]} 6... Nxf3+
{[%clk 0:02:51.3]} 7. Qxf3 {[%clk 0:02:59.9]} 7... Bb6 {[%clk 0:02:48.3]} 8. Nc3
{[%clk 0:02:56.5]} 8... c6 {[%clk 0:02:45.9]} 9. Bc4 {[%clk 0:02:55.7]} 9... d6
{[%clk 0:02:42.9]} 10. h3 {[%clk 0:02:38]} 10... Be6 {[%clk 0:02:41.4]} 11. Bb3
{[%clk 0:02:24.7]} 11... h6 {[%clk 0:02:21.5]} 12. Rad1 {[%clk 0:02:22.9]} 12...
O-O {[%clk 0:02:19.4]} 13. d4 {[%clk 0:02:17.7]} 13... exd4 {[%clk 0:02:18.4]}
14. Bxd4 {[%clk 0:02:18.6]} 14... Bxd4 {[%clk 0:02:14.8]} 15. Rxd4 {[%clk
0:02:19.5]} 15... Qe7 {[%clk 0:02:14.6]} 16. Rfd1 {[%clk 0:02:14.8]} 16... Rad8
{[%clk 0:02:13.4]} 17. Qf4 {[%clk 0:01:27.3]} 17... Ne8 {[%clk 0:01:05.8]} 18.
R4d2 {[%clk 0:01:18.2]} 18... Bxb3 {[%clk 0:01:00.2]} 19. axb3 {[%clk
0:01:19.1]} 19... f6 {[%clk 0:00:57.3]} 20. Qe3 {[%clk 0:01:12.4]} 20... a6
{[%clk 0:00:52.7]} 21. Ne2 {[%clk 0:01:12.5]} 21... Nc7 {[%clk 0:00:49.6]} 22.
Ng3 {[%clk 0:01:12.9]} 22... Rfe8 {[%clk 0:00:44]} 23. Qb6 {[%clk 0:00:37.1]}
23... Na8 {[%clk 0:00:36.5]} 24. Qb4 {[%clk 0:00:36.8]} 24... c5 {[%clk
0:00:27.7]} 25. Qc4+ {[%clk 0:00:31]} 25... Kh8 {[%clk 0:00:27.7]} 26. Nf5
{[%clk 0:00:29.6]} 26... Qxe4 {[%clk 0:00:26.3]} 27. Qxe4 {[%clk 0:00:30.5]}
27... Rxe4 {[%clk 0:00:26.7]} 28. Nxd6 {[%clk 0:00:31.1]} 28... Rxd6 {[%clk
0:00:10.1]} 29. Rxd6 {[%clk 0:00:32]} 29... Nc7 {[%clk 0:00:09.8]} 30. Rd7
{[%clk 0:00:30.3]} 30... Ne6 {[%clk 0:00:09.6]} 31. Re7 {[%clk 0:00:27]} 31...
Ng5 {[%clk 0:00:05.2]} 32. Rdd7 {[%clk 0:00:25]} 1-0

[Event "*** Titled Tuesday Blitz"]
[Site "Chess.com"]
[Date "2020.04.14"]
[Round "2"]
[White "ElHelvetico"]
[Black "gena217"]
[Result "0-1"]
[WhiteElo "2602"]
[BlackElo "2913"]
[TimeControl "180+1"]
[EndTime "10:17:08 PDT"]
[Termination "gena217 won on time"]

1. e4 {[%clk 0:03:00.9]} 1... c6 {[%clk 0:02:59.8]} 2. Nc3 {[%clk 0:03:00.3]}
2... d5 {[%clk 0:03:00.7]} 3. Nf3 {[%clk 0:02:59.7]} 3... a6 {[%clk 0:03:00.4]}
4. d4 {[%clk 0:02:58.3]} 4... Bg4 {[%clk 0:02:59.9]} 5. h3 {[%clk 0:02:57.5]}
5... Bh5 {[%clk 0:02:59.9]} 6. exd5 {[%clk 0:02:41.8]} 6... cxd5 {[%clk
0:03:00.8]} 7. g4 {[%clk 0:02:42.2]} 7... Bg6 {[%clk 0:03:00.7]} 8. Ne5 {[%clk
0:02:42.9]} 8... e6 {[%clk 0:03:01.3]} 9. h4 {[%clk 0:02:37.5]} 9... f6 {[%clk
0:02:59.8]} 10. Nxg6 {[%clk 0:02:36.3]} 10... hxg6 {[%clk 0:03:00]} 11. Qe2
{[%clk 0:02:31.5]} 11... Kf7 {[%clk 0:02:56.5]} 12. Bg2 {[%clk 0:02:28.7]} 12...
Nc6 {[%clk 0:02:41.1]} 13. Be3 {[%clk 0:02:28]} 13... Bb4 {[%clk 0:02:40.1]} 14.
h5 {[%clk 0:02:22.7]} 14... gxh5 {[%clk 0:02:32.4]} 15. Rxh5 {[%clk 0:02:14.4]}
15... Nge7 {[%clk 0:02:17.6]} 16. g5 {[%clk 0:01:56.3]} 16... Qa5 {[%clk
0:02:07.4]} 17. Rd1 {[%clk 0:01:29.2]} 17... Bxc3+ {[%clk 0:02:02.7]} 18. bxc3
{[%clk 0:01:30.1]} 18... Qxc3+ {[%clk 0:02:03.2]} 19. Kf1 {[%clk 0:01:30.4]}
19... f5 {[%clk 0:01:53.5]} 20. Kg1 {[%clk 0:01:17.1]} 20... Rxh5 {[%clk
0:01:51]} 21. Qxh5+ {[%clk 0:01:18]} 21... Ng6 {[%clk 0:01:51.5]} 22. Qh2 {[%clk
0:01:03.6]} 22... Nce7 {[%clk 0:01:36.5]} 23. Qd6 {[%clk 0:00:47.8]} 23... Rh8
{[%clk 0:01:13.3]} 24. Rb1 {[%clk 0:00:32.5]} 24... b5 {[%clk 0:01:07.3]} 25.
Qxa6 {[%clk 0:00:30.5]} 25... f4 {[%clk 0:01:04]} 26. Rf1 {[%clk 0:00:14.4]}
26... Qxc2 {[%clk 0:00:43.6]} 27. Bc1 {[%clk 0:00:08.3]} 27... Qf5 {[%clk
0:00:29]} 28. Re1 {[%clk 0:00:05.5]} 28... f3 {[%clk 0:00:27.5]} 29. Bxf3 {[%clk
0:00:06.1]} 29... Qxf3 {[%clk 0:00:20.6]} 30. Qxe6+ {[%clk 0:00:06.7]} 30... Kf8
{[%clk 0:00:21.1]} 0-1

[Event "*** Titled Tuesday Blitz"]
[Site "Chess.com"]
[Date "2020.04.14"]
[Round "2"]
[White "vovachesss"]
[Black "GOGIEFF"]
[Result "0-1"]
[WhiteElo "2608"]
[BlackElo "2979"]
[TimeControl "180+1"]
[EndTime "10:17:09 PDT"]
[Termination "GOGIEFF won on time"]

1. e4 {[%clk 0:03:00.9]} 1... c5 {[%clk 0:02:58.9]} 2. d4 {[%clk 0:03:00.6]}
2... cxd4 {[%clk 0:02:58.3]} 3. c3 {[%clk 0:03:01.1]} 3... dxc3 {[%clk
0:02:58.5]} 4. Nxc3 {[%clk 0:03:02]} 4... Nc6 {[%clk 0:02:58.3]} 5. Nf3 {[%clk
0:03:02.3]} 5... e6 {[%clk 0:02:58.4]} 6. Bc4 {[%clk 0:03:02.4]} 6... Nf6 {[%clk
0:02:57.1]} 7. O-O {[%clk 0:03:01.8]} 7... d6 {[%clk 0:02:56.9]} 8. Qe2 {[%clk
0:03:01.5]} 8... Be7 {[%clk 0:02:51.1]} 9. Rd1 {[%clk 0:03:01.6]} 9... e5 {[%clk
0:02:36.6]} 10. h3 {[%clk 0:02:59.6]} 10... h6 {[%clk 0:02:34.4]} 11. Nd5 {[%clk
0:02:47.5]} 11... O-O {[%clk 0:02:31]} 12. Be3 {[%clk 0:02:46.3]} 12... Be6
{[%clk 0:02:21]} 13. Rac1 {[%clk 0:02:40.3]} 13... Nxe4 {[%clk 0:02:04.2]} 14.
Bxh6 {[%clk 0:02:36.4]} 14... Nxf2 {[%clk 0:01:56.9]} 15. Bxg7 {[%clk
0:02:30.4]} 15... Nxh3+ {[%clk 0:01:45.8]} 16. gxh3 {[%clk 0:02:29]} 16... Kxg7
{[%clk 0:01:46.3]} 17. Qg2+ {[%clk 0:01:37.5]} 17... Kh8 {[%clk 0:01:45]} 18.
Kh2 {[%clk 0:01:37.2]} 18... Rg8 {[%clk 0:01:34.7]} 19. Qe2 {[%clk 0:01:17.5]}
19... Bg5 {[%clk 0:01:20.2]} 20. Rc3 {[%clk 0:00:39.9]} 20... Bh6 {[%clk
0:01:14.1]} 21. Ne3 {[%clk 0:00:20]} 21... Bf4+ {[%clk 0:01:03.6]} 22. Kh1
{[%clk 0:00:19.2]} 22... Rg3 {[%clk 0:00:56.6]} 23. Bxe6 {[%clk 0:00:15.1]}
23... fxe6 {[%clk 0:00:56.2]} 24. Ng4 {[%clk 0:00:14.2]} 24... Rxh3+ {[%clk
0:00:52.7]} 25. Kg2 {[%clk 0:00:14.9]} 25... Rg3+ {[%clk 0:00:52.7]} 26. Kf2
{[%clk 0:00:15.6]} 26... Rxg4 {[%clk 0:00:48.2]} 27. Rh1+ {[%clk 0:00:16.1]}
27... Kg7 {[%clk 0:00:47.3]} 28. Nd4 {[%clk 0:00:14]} 28... Rg6 {[%clk
0:00:32.2]} 29. Nxc6 {[%clk 0:00:11.8]} 29... Qb6+ {[%clk 0:00:30]} 30. Kf1
{[%clk 0:00:09.8]} 30... Rf8 {[%clk 0:00:27]} 31. Rf3 {[%clk 0:00:04.5]} 31...
Qxc6 {[%clk 0:00:26.2]} 32. Qf2 {[%clk 0:00:01.6]} 32... Qc1+ {[%clk 0:00:24.4]}
0-1

[Event "*** Titled Tuesday Blitz"]
[Site "Chess.com"]
[Date "2020.04.14"]
[Round "2"]
[White "theblitzchamp"]
[Black "hakki1"]
[Result "1-0"]
[WhiteElo "2683"]
[BlackElo "2384"]
[TimeControl "180+1"]
[EndTime "10:17:10 PDT"]
[Termination "theblitzchamp won on time"]

1. e4 {[%clk 0:03:00.9]} 1... Nf6 {[%clk 0:02:58.8]} 2. Nc3 {[%clk 0:03:00.6]}
2... d6 {[%clk 0:02:55.4]} 3. d4 {[%clk 0:03:00.2]} 3... e5 {[%clk 0:02:55.3]}
4. f4 {[%clk 0:02:56.6]} 4... exd4 {[%clk 0:02:53]} 5. Qxd4 {[%clk 0:02:56.3]}
5... Be7 {[%clk 0:02:53]} 6. Nf3 {[%clk 0:02:56]} 6... O-O {[%clk 0:02:52]} 7.
Be3 {[%clk 0:02:54.7]} 7... a6 {[%clk 0:02:42.7]} 8. O-O-O {[%clk 0:02:45.8]}
8... b5 {[%clk 0:02:38.4]} 9. Nd5 {[%clk 0:02:02.5]} 9... Nxd5 {[%clk
0:02:25.4]} 10. Qxd5 {[%clk 0:02:00.4]} 10... c6 {[%clk 0:02:22.1]} 11. Qh5
{[%clk 0:01:57.9]} 11... Be6 {[%clk 0:01:37.7]} 12. Bd3 {[%clk 0:00:53.7]} 12...
Nd7 {[%clk 0:00:56.5]} 13. e5 {[%clk 0:00:20.1]} 13... g6 {[%clk 0:00:56.1]} 14.
Qh6 {[%clk 0:00:20.6]} 14... dxe5 {[%clk 0:00:42.2]} 15. Nxe5 {[%clk 0:00:13.6]}
15... Nxe5 {[%clk 0:00:38.2]} 16. fxe5 {[%clk 0:00:14.5]} 16... Qc7 {[%clk
0:00:37.6]} 17. Bf4 {[%clk 0:00:13.4]} 17... Rfd8 {[%clk 0:00:25.7]} 18. h4
{[%clk 0:00:13]} 18... Bf8 {[%clk 0:00:16.3]} 19. Qg5 {[%clk 0:00:13.1]} 19...
Bxa2 {[%clk 0:00:08.9]} 20. h5 {[%clk 0:00:13.2]} 20... Bc4 {[%clk 0:00:04.3]}
21. hxg6 {[%clk 0:00:13]} 21... fxg6 {[%clk 0:00:03.1]} 22. Rh3 {[%clk
0:00:07.9]} 22... Bxd3 {[%clk 0:00:03.2]} 23. cxd3 {[%clk 0:00:08.2]} 23... Qf7
{[%clk 0:00:02.5]} 24. Rdh1 {[%clk 0:00:07.9]} 24... h6 {[%clk 0:00:01.6]} 25.
Rxh6 {[%clk 0:00:07.1]} 25... Bxh6 {[%clk 0:00:01.4]} 26. Rxh6 {[%clk
0:00:07.9]} 1-0